Cogmind - Beta 10.2 @@@ ROGUE MODE // 2021.06.25 @ 22:13:24 Player: puncake Result: Destroyed by Y-54 Guardian with Flak Gun Performance ------------- Evolutions (3) 1500 Regions Visited (5) 1000 Robots Destroyed (67) 335 Value Destroyed (2235) 2235 Prototype IDs (5) 100 Alien Tech Used (0) 0 Bonus (754) 754 TOTAL SCORE: 5924 Bonus ------- High Alert Combat Kills 54 Entered Garrisons 200 Used RIF Installer 500 Cogmind --------- Core Integrity 0/700 Matter 79/300 Energy 99/100 System Corruption 3% Temperature Cool (12) Movement Core (50) Location -7/Factory Parts ------- > --- POWER (1) -------- (None) > --- PROPULSION (3) --- (None) > --- UTILITY (7) ------ Enhanced Optical Array Advanced Signal Interpreter Advanced Targeting Computer Microactuators Relay Coupler [Swarmer] (31) Relay Coupler [Grunt] (22) > --- WEAPON (2) ------- (None) > --- INVENTORY (4) ---- Light Nuclear Core Advanced Terrain Scan Processor Recalibrator Assault Rifle Peak State ------------ > --- POWER ------------ Cooled Deuterium Engine > --- PROPULSION ------- Carbon-fiber Leg Carbon-fiber Leg > --- UTILITY ---------- Small Storage Unit Enhanced Optical Array Advanced Signal Interpreter Relay Coupler [NC] Relay Coupler [Swarmer] Relay Coupler [Grunt] Relay Coupler [Grunt] > --- WEAPON ----------- Tesla Rifle Powered Hammer > --- INVENTORY -------- Advanced Targeting Computer Microactuators Relay Coupler [Swarmer] Relay Coupler [Sentry] Rocket Array Improved Remote Datajack [Rating: 41] Favorites ----------- Power Heavy Ion Engine Engine Heavy Ion Engine Power Core Light Nuclear Core Propulsion Aluminum Leg Treads Light Treads Leg Aluminum Leg Wheel Wheel Flight Unit Flight Unit Utility Advanced Signal Interpreter Device Improved Heat Sink Storage Medium Storage Unit Processor Advanced Signal Interpreter Hackware Relay Coupler [Grunt] Protection Reflective Plating Weapon Assault Rifle Energy Gun Tesla Rifle Energy Cannon Advanced Beam Cannon Ballistic Gun Assault Rifle Ballistic Cannon Mini Assault Cannon Launcher EMP Blaster Special Weapon Improved Remote Datajack Impact Weapon Powered Hammer Special Melee Weapon Improved Datajack Build | -11 -10 -9 -8 -8 -7 ------- Run | Scr Mat Mat Mat Gar Fac Slots Evolved 6 | . . 2 2 . 2 Power . | . . . . . . Propulsion 1 | . . 1 . . . Utility 5 | . . 1 2 . 2 Weapon . | . . . . . . Parts Attached 75 | 6 5 11 12 7 34 Power 9 | 1 1 1 1 2 3 Engine 8 | 1 1 1 1 2 2 Core 1 | . . . . . 1 Reactor . | . . . . . . Propulsion 19 | 2 1 4 5 2 5 Treads 3 | . . 1 2 . . Leg 10 | 2 1 3 . . 4 Wheel 1 | . . . . . 1 Hover . | . . . . . . Flight 5 | . . . 3 2 . Utility 20 | 1 3 2 4 2 8 Device 4 | . 2 1 . . 1 Storage 4 | 1 1 . 1 . 1 Processor 5 | . . 1 2 . 2 Hackware 6 | . . . . 2 4 Protection 1 | . . . 1 . . Artifact . | . . . . . . Weapon 27 | 2 . 4 2 1 18 Energy Gun 2 | . . . . . 2 Energy Cannon 7 | . . 4 1 . 2 Ballistic Gun 5 | 2 . . . . 3 Ballistic Cannon 1 | . . . . . 1 Launcher 5 | . . . . 1 4 Special Weapon 2 | . . . . . 2 Impact Weapon 4 | . . . 1 . 3 Slashing Weapon . | . . . . . . Piercing Weapon . | . . . . . . Special Melee Weapon 1 | . . . . . 1 Unidentified Prototypes 5 | . . 2 . . 3 Parts Lost 32 | . 1 3 1 8 19 Power 4 | . 1 1 . 1 1 Propulsion 11 | . . 1 . 5 5 Utility 6 | . . . . 1 5 Weapon 11 | . . 1 1 1 8 Highest Loss Streak 8 | . 1 2 1 5 8 Average Slot Usage (%) 89 | . 98 91 96 72 84 Engine 8 | . 14 10 9 3 6 Treads 2 | . . 3 7 . . Leg 17 | . 28 24 14 . 11 Flight 1 | . . . 4 17 . Device 7 | . 12 15 8 . . Storage 7 | . 14 11 7 . 2 Processor 14 | . . 2 26 27 23 Hackware 8 | . . . . 13 23 Energy Cannon 5 | . . 8 15 . 2 Ballistic Gun 8 | . 28 13 . . 1 Impact Weapon 1 | . . . 1 2 2 Naked Turns . | . . . . . . Heaviest Build 26 | 11 18 26 25 12 23 Greatest Support 37 | 20 20 30 20 12 37 Greatest Overweight (x) 7 | 3 . 1 6 . 7 Average Overweight (x) . | . . . . . . Largest Inventory Capacity 8 | 6 8 8 8 4 6 Average Capacity 6 | 5 7 8 7 4 4 Most Carried 8 | 6 8 8 8 4 6 Average Carried 5 | 3 5 7 7 2 3 Final Capacity 8 | 6 8 8 4 4 4 Final Carried 8 | 6 8 8 4 2 4 Class Distribution -------------------- 61% | Mutant 32% | Scavenger-Mutant 6% | Bothacker-Mutant Dominant Class ---------------- Mutant | -10/Materials Scavenger-Mutant | -9/Materials Scavenger-Mutant | -8/Materials Mutant | -8/Garrison Mutant | -7/Factory Resources | -11 -10 -9 -8 -8 -7 ----------- Run | Scr Mat Mat Mat Gar Fac Matter Collected 1321 | 200 265 223 110 62 461 Remotely . | . . . . . . Salvage Created 1963 | . 309 505 478 34 637 Parts 134 | . 24 38 31 7 34 Haulers Intercepted 5 | . 1 2 2 . . Recyclers Shooed 3 | . . 1 . . 2 Parts Field Recycled . | . . . . . . Retrieved Matter . | . . . . . . Parts Self-Destructed . | . . . . . . Prevented . | . . . . . . Kills | -11 -10 -9 -8 -8 -7 ------- Run | Scr Mat Mat Mat Gar Fac Combat Hostiles Destroyed 47 | . 8 12 11 6 10 Melee 1 | . . . . . 1 Guns 11 | . 8 1 . . 2 Cannons 21 | . . 11 9 . 1 AOE 12 | . . . 2 6 4 Classes Destroyed 12 | . 5 3 2 . 2 Worker 2 | . . . 1 . 1 Builder 6 | . . 1 1 . 4 Tunneler 1 | . 1 . . . . Hauler 5 | . 1 2 2 . . Recycler 1 | . . . . . 1 Operator 2 | . . 1 1 . . Watcher 3 | . 1 2 . . . Swarmer 20 | . 3 6 7 4 . Grunt 15 | . 5 4 1 . 5 Sentry 5 | . . 2 2 . 1 Hunter 5 | . . . 1 2 2 Programmer 2 | . . . . . 2 Best Kill Streak 11 | . 6 8 11 4 5 Combat Bots Only 8 | . 5 6 8 4 2 Max Kills in Single Turn 5 | . 1 2 3 3 5 Gunslinging 1 | . . 1 . . . Exploded 3 | . . . 2 3 2 Melee 1 | . . . . . 1 Uniques/NPCs Destroyed . | . . . . . . Combat | -11 -10 -9 -8 -8 -7 -------- Run | Scr Mat Mat Mat Gar Fac Damage Taken 4311 | . 365 440 450 859 2197 Core 1392 | . 83 54 69 479 707 Absorbed by Shields 23 | . . . . 23 . Core Remaining (%) 63 | 100 66 86 . . . Volleys Fired 175 | . 35 41 31 17 51 Largest 2 | . 2 2 2 1 2 Hottest 136 | . 40 136 136 30 96 Shots Fired 291 | . 70 82 61 17 61 Gun 125 | . 70 26 . . 29 Cannon 131 | . . 56 61 . 14 Launcher 31 | . . . . 17 14 Special 4 | . . . . . 4 Kinetic 120 | . 70 26 . . 24 Thermal 103 | . . 56 47 . . Explosive 23 | . . . . 17 6 Electromagnetic 41 | . . . 14 . 27 Robot Hit Streak 16 | . 8 7 5 5 16 Robot Miss Streak 3 | . 2 3 2 2 3 Penetration Max . | . . . . . . Secondary Targets 5 | . 4 1 . . . Max Gunslinging Chain 1 | . 1 1 . . . Shots Hit Robots 208 | . 45 46 32 12 73 Core Hits 96 | . 19 19 20 10 28 Critical Hits 9 | . 1 2 4 . 2 Critical Kills 2 | . . 2 . . . Critical Parts Destroyed 6 | . 1 . 3 . 2 Melee Attacks 39 | . . . . 3 36 Impact 33 | . . . . 3 30 Slashing . | . . . . . . Piercing . | . . . . . . Sneak Attacks 3 | . . . . . 3 Combat Hostiles . | . . . . . . Follow-up Attacks . | . . . . . . Damage Inflicted 5488 | . 546 795 989 747 2411 Guns 1222 | . 546 163 . . 513 Cannons 1734 | . . 632 786 . 316 Explosions 1871 | . . . 203 715 953 Melee 661 | . . . . 32 629 Ramming . | . . . . . . Kinetic 1205 | . 546 163 . . 496 Thermal 1951 | . . 632 731 . 588 Explosive 858 | . . . . 715 143 Electromagnetic 813 | . . . 258 . 555 Impact 661 | . . . . 32 629 Slashing . | . . . . . . Piercing . | . . . . . . Highest Corruption 3 | . . 1 . . 3 Average Corruption 1 | . . 1 . . 1 Corruption Purged . | . . . . . . Effects 7 | . . . . . 7 Message Errors 2 | . . . . . 2 Matter Fused 2 | . . . . . 2 Heat Flow Errors 1 | . . . . . 1 Targeting Errors 2 | . . . . . 2 Overload Shots . | . . . . . . Overflow Damage 254 | . . 2 . . 252 Projectiles 2 | . . 2 . . . Explosions 119 | . . . . . 119 Melee 133 | . . . . . 133 Knockbacks 4 | . . . . . 4 Impact 4 | . . . . . 4 Kinetic . | . . . . . . Secondary . | . . . . . . Self-Inflicted Damage 322 | . . . . 97 225 Shots 15 | . . . . 3 12 Rammed . | . . . . . . Targets Rammed . | . . . . . . Kicked . | . . . . . . Crushed . | . . . . . . Highest Temperature 223 | . 2 223 143 1 98 Average Temperature 54 | . 2 85 43 1 17 Received Heat Transfer 708 | . 174 78 54 114 288 Siege Activations . | . . . . . . Robots Corrupted 1 | . . . . . 1 Combat Hostiles 1 | . . . . . 1 Parts Fried 8 | . . . 2 . 6 Impact Corruptions 7 | . . . . . 7 Robots Melted . | . . . . . . Combat Hostiles . | . . . . . . Parts Melted 1 | . . . 1 . . Heat Transferred 2709 | . . 1147 1112 . 450 Parts Sabotaged . | . . . . . . Parts Stolen . | . . . . . . Parts Stripped . | . . . . . . Power Chain Reactions 4 | . . . 2 . 2 Missiles Intercepted . | . . . . . . Alert | -11 -10 -9 -8 -8 -7 ------- Run | Scr Mat Mat Mat Gar Fac Peak Influence 618 | . 219 369 224 400 618 Initial 210 | . . 24 54 72 210 Average 180 | . 58 99 75 223 358 Maximum Alert Level 2 | . 1 1 1 2 2 Low Security (%) 54 | 100 85 69 99 56 1 Level 1 33 | . 14 30 . 42 62 Level 2 11 | . . . . . 35 Level 3 . | . . . . . . Level 4 . | . . . . . . Level 5 . | . . . . . . High Security . | . . . . . . Max Security . | . . . . . . Squads Dispatched 11 | . 1 2 1 . 7 Investigation 1 | . . 1 . . . Extermination 2 | . . . . . 2 Reinforcement 5 | . 1 1 1 . 2 Assault . | . . . . . . Garrison 3 | . . . . . 3 Intercept . | . . . . . . Construction Impeded 1 | . . . . . 1 Haulers Reinforced . | . . . . . . Stealth | -11 -10 -9 -8 -8 -7 --------- Run | Scr Mat Mat Mat Gar Fac Distress Signals 7 | . 2 1 3 . 1 Communications Jammed . | . . . . . . Distress Signals . | . . . . . . Times Spotted 98 | . 19 17 18 16 28 Peak Tracking Total 6 | . 6 6 5 6 6 Tactical Retreats 5 | . 2 1 . 2 . Traps | -11 -10 -9 -8 -8 -7 ------- Run | Scr Mat Mat Mat Gar Fac Traps Triggered 3 | . . 2 . 1 . Indirectly . | . . . . . . Trap Hack Attempts . | . . . . . . Triggered . | . . . . . . Disarmed . | . . . . . . Reprogrammed . | . . . . . . Reused . | . . . . . . Traps Extracted . | . . . . . . Installed . | . . . . . . Triggered . | . . . . . . Machines | -11 -10 -9 -8 -8 -7 ---------- Run | Scr Mat Mat Mat Gar Fac Machines Disabled 29 | . . 3 2 3 21 Max in Single Turn 9 | . . 1 1 1 9 Garrison Relay 2 | . . . . 2 . Machines Sabotaged . | . . . . . . Garrisons Compromised . | . . . . . . Overloaded Fab Kills . | . . . . . . Fab Network Shutdowns . | . . . . . . Hacking | -11 -10 -9 -8 -8 -7 --------- Run | Scr Mat Mat Mat Gar Fac Machines Accessed 10 | . 2 3 3 . 2 Terminals 8 | . 1 3 2 . 2 Fabricators . | . . . . . . Repair Stations . | . . . . . . Recycling Units 1 | . 1 . . . . Scanalyzers . | . . . . . . Garrison Access 1 | . . . 1 . . Total Hacks 16 | . 3 4 6 . 3 Successful 8 | . 1 3 3 . 1 Failed 8 | . 2 1 3 . 2 Catastrophic 1 | . . . . . 1 Database Lockouts . | . . . . . . Manual 7 | . . 4 3 . . Terminals 14 | . 2 4 5 . 3 Fabricators . | . . . . . . Repair Stations . | . . . . . . Recycling Units 1 | . 1 . . . . Scanalyzers . | . . . . . . Garrison Access 1 | . . . 1 . . Terminal Hacks 6 | . . 3 2 . 1 Level Access Points 1 | . . 1 . . . Branch Access Points 3 | . . 1 1 . 1 Unreport Threat 2 | . . 1 1 . . Fabricator Hacks . | . . . . . . Repair Station Hacks . | . . . . . . Recycling Unit Hacks 1 | . 1 . . . . Retrieve Components 1 | . 1 . . . . Scanalyzer . | . . . . . . Garrison Access Hacks 1 | . . . 1 . . Unlock Access 1 | . . . 1 . . Unauthorized Hacks . | . . . . . . Terminals . | . . . . . . Fabricators . | . . . . . . Repair Stations . | . . . . . . Recycling Units . | . . . . . . Scanalyzers . | . . . . . . Garrison Access . | . . . . . . Data Cores Recovered 1 | . . 1 . . . Used . | . . . . . . Hacking Detections 4 | . 1 . 1 . 2 Full Trace Events 1 | . 1 . . . . Feedback Events . | . . . . . . Feedback Blocked . | . . . . . . Robot Schematics Acquired . | . . . . . . Robots Built . | . . . . . . Matter . | . . . . . . Time . | . . . . . . Total Robot Build Rating . | . . . . . . Part Schematics Acquired . | . . . . . . Parts Built . | . . . . . . Matter . | . . . . . . Time . | . . . . . . Total Part Build Rating . | . . . . . . Parts Repaired . | . . . . . . Time . | . . . . . . Parts Recycled . | . . . . . . Recycled Matter . | . . . . . . Retrieved Matter . | . . . . . . Retrieved Components 2 | . 2 . . . . Parts Scanalyzed . | . . . . . . Part Schematics Acquired . | . . . . . . Parts Damaged . | . . . . . . Bothacking | -11 -10 -9 -8 -8 -7 ------------ Run | Scr Mat Mat Mat Gar Fac Used RIF Installer 1 | . . . . 1 . Robots Hacked 5 | . . . . . 5 Non-combat 3 | . . . . . 3 Combat 2 | . . . . . 2 Robot Hacks Applied 5 | . . . . . 5 ignore_parts 2 | . . . . . 2 map_route 1 | . . . . . 1 spike_heat 1 | . . . . . 1 overload_power 1 | . . . . . 1 Relay Couplers Released 12 | . . . . 8 4 Machine Destruction 8 | . . . . 8 . Programmers 4 | . . . . . 4 Attached 6 | . . . . 2 4 Robots Rewired . | . . . . . . Allies Hacked . | . . . . . . Hacks Repelled . | . . . . . . Allies | -11 -10 -9 -8 -8 -7 -------- Run | Scr Mat Mat Mat Gar Fac Total Allies . | . . . . . . Largest Group . | . . . . . . Highest-Rated Group . | . . . . . . Highest-Rated Ally . | . . . . . . Total Orders . | . . . . . . Ally Attacks . | . . . . . . Total Damage . | . . . . . . Kills . | . . . . . . Allies Corrupted . | . . . . . . Allies Melted . | . . . . . . Intel | -11 -10 -9 -8 -8 -7 ------- Run | Scr Mat Mat Mat Gar Fac Robot Analysis Total . | . . . . . . Derelict Logs Recovered . | . . . . . . Drone Launches . | . . . . . . Drone Recoveries . | . . . . . . Exploration | -11 -10 -9 -8 -8 -7 ------------- Run | Scr Mat Mat Mat Gar Fac Turns Passed 3717 | 80 528 1030 620 226 1233 Spaces Moved 2148 | 52 299 346 446 332 673 Core 161 | 25 . . . 79 57 Treads . | . . . . . . Legs 1529 | 27 299 346 241 . 616 Wheels . | . . . . . . Hover . | . . . . . . Flight 458 | . . . 205 253 . Fastest Speed 34 | 50 120 120 34 34 50 Average Speed 110 | 120 120 136 102 39 131 Slowest Speed 520 | 200 120 150 520 50 400 Overloaded Moves . | . . . . . . Propulsion Burnouts . | . . . . . . Robots Hopped 4 | . . . . 4 . Cave-ins Triggered . | . . . . . . Exploration Rate (%) 29 | 4 48 37 29 48 13 Regions Visited 5 Branch Regions . Pre-discovered Areas . | . . . . . . Known Exits Taken 2 | . . 1 1 . . Unknown Exits Taken 2 | 1 1 . . . . Scrap Searched . | . . . . . . Spaces Dug . | . . . . . . Terrain Destroyed 227 | . . . . 107 120 Melee . | . . . . . . Projectile . | . . . . . . AOE 227 | . . . . 107 120 Terrain Rammed . | . . . . . . Walls Destroyed . | . . . . . . Machines Disabled . | . . . . . . Actions | -11 -10 -9 -8 -8 -7 --------- Run | Scr Mat Mat Mat Gar Fac Total 3163 | 69 399 826 551 401 917 Wait 616 | . 49 413 39 25 90 Move 2136 | 51 298 345 446 323 673 Hop 4 | . . . . 4 . Pick Up 58 | 12 7 8 7 3 21 Fast Attach 18 | . 1 3 4 1 9 Attach 44 | 6 2 6 4 5 21 Detach 9 | . 1 . . 2 6 Swap 13 | . 2 2 4 1 4 Drop 36 | . 4 8 16 2 6 Fire 175 | . 35 41 31 17 51 Melee 39 | . . . . 3 36 Ram . | . . . . . . Kick . | . . . . . . Crush . | . . . . . . Escape Stasis 15 | . . . . 15 . Rewire . | . . . . . . Trap . | . . . . . . Miscellaneous . | . . . . . . Route ------- -11/Scrapyard -10/Materials (discovered 2 exits: *Mat / [*Min]) -9/Materials (discovered 6 exits: *Mat x3 / *Min x2 / Sto) -8/Materials -8/Garrison -7/Factory (discovered 2 exits: *Low x2) History --------- Turn | Location | Event 28 | -11/Scrapyard | Discovered new exit (range 15) 81 | -11/Scrapyard | Entered Materials 302 | -10/Materials | Build established: Mutant 450 | -10/Materials | Discovered new exit (range 15) 575 | -10/Materials | Discovered new exit (range 16) 609 | -10/Materials | Entered another Materials area 609 | -9/Materials | Evolved 2 slots: Propulsion x1, Utility x1 1177 | -9/Materials | Identified exit to Mines 1177 | -9/Materials | Identified exit to Storage 1463 | -9/Materials | Identified exit to Materials 1639 | -9/Materials | Entered another Materials area 1639 | -8/Materials | Evolved 2 slots: Utility x2 1679 | -8/Materials | Build established: Scavenger-Mutant 2076 | -8/Materials | Destroyed 8 combat bots 2259 | -8/Materials | Identified exit to Garrison 2259 | -8/Materials | Entered Garrison 2261 | -8/Garrison | Installed Relay Interface Framework 2281 | -8/Garrison | Garrison Relay disabled 2288 | -8/Garrison | Triggered checkpoint 2298 | -8/Garrison | Triggered checkpoint 2357 | -8/Garrison | Core integrity fell below 50% 2385 | -8/Garrison | Lost 5 parts (1p3n1u) 2388 | -8/Garrison | Garrison Relay disabled 2429 | -8/Garrison | Core integrity fell below 20% 2475 | -8/Garrison | Lost 3 parts (2n1w) 2480 | -8/Garrison | Discovered new exit (range 10) 2485 | -8/Garrison | Entered Factory 2485 | -7/Factory | Evolved 2 slots: Utility x2 2575 | -7/Factory | Discovered new exit (range 22) 2615 | -7/Factory | Build established: Mutant 2672 | -7/Factory | Found Prototype Launcher 2672 | -7/Factory | Identified Rocket Array 2744 | -7/Factory | Identified exit to Lower Caves 3572 | -7/Factory | Core integrity fell below 50% 3612 | -7/Factory | Lost 5 parts (1p2u2w) 3659 | -7/Factory | Core integrity fell below 20% 3718 | -7/Factory | Destroyed by Y-54 Guardian with Flak Gun Last Messages --------------- 03635_ System corrupted: Heat flow error (+131). 03638_ Carbon-fiber Leg destroyed. 03646_ System corrupted: Imp. Remote Datajack targeting data glitched. 03646_ Jacked Y-54 Guardian... >>spike_heat Unable to locate active power source. 03651_ Rocket Array destroyed. 03654_ Relay Coupler [Grunt] destroyed. 03654_ Relay Coupler [Sentry] destroyed. 03655_ System corrupted: Matter fused (-10). 03661_ Acquired Assault Rifle. 03678_ System corrupted: Matter fused (-5). 03678_ Shock Rifle destroyed. 03678_ Sml. Storage Unit destroyed. 03684_ Jacked Y-54 Guardian... 03688_ Acquired Lgt. Nuclear Core. 03701_ Imp. Remote Datajack destroyed. 03703_ =YS8>10VVTS7WB>E=AP MRVD25 03712_ Acquired Adv. Terrain Scan Processor. 03717_ Acquired Recalibrator. Map ----- +----------------------------------------------------+ | ??????????????????????????# #???????? | | ??????????????????????????# #???????? | | ??????????????????????????# #???????? | | ??????????????????????????# ######### | | ??????????????????????????# ! # | | ??????????????????????????# # | | ??????????????????????????#+#######+#### | | ??????????????????????????# #???# ^ | | ??????????????????????????# ##### | | ????????????#######???????# ### | | ????????????# #########+##### #?? | | ????????????# # ## #?? | | ????????????# # ## %### | | ????????????# # """"" ## [# | | ????????????# # """"" ## # | | ????????????# # """ ## # | | ????????????# # ## # | | ????????????# # """"" ## # | | ????????????# """"" / # | | ????????????# """ ### # | | ############# ### # | | # / ### + | | # # ### # | | # # ############ # | | # # #???## ### | | # # ]* @ #???## # | | # # Y ] #???## # | | # Y/ # """ ###### # | | # !# + """ + + | | # # # """ ###### # | | # # #???### # | | # # # #???# # # | | # # # # ########### # ]## | | # # ## # # # | | ############# #### # # | | ????????????# ####[ # # | | ????????????# # | | ????????????# [ #! | | ????????????## ## # | | ????????????# # + | | ????????????# ######### # | | ????????????## ## # | | ?????????????# # !! !## ##### | | ?????????????# ?# !! ## # | | ?????????????? "??#"" !! + + | | ?????????????? " ""??#"" ######""" | | ?????????????? """ "???#"T """ #????#"T | | ??????????????# ??? ???#"" """ #????#""" | | ??????????????? ?????! ""????#"" """ #????# | | ?????????????????????? ??????# #????##### | +----------------------------------------------------+ Best States ------------- Heat Dissipation 45 Energy Generation 18 Energy Capacity 310 Matter Stores 300 Matter Capacity 300 Sight Range 22 Robot Scan Range 10 Terrain Scan Density 10 ECM Strength 1 Armor Coverage 150 Resistance: TH 10 Melee Speed Boost 20 Evasion (%) 63 Targeting Accuracy 8 Armor Integrity Analysis 33 Relay Coupler Types 98 Relay Coupler Value 3 Item Schematics ----------------- None Robot Schematics ------------------ None Fabricated ------------ Nothing Alien Tech Used ----------------- None Achievements -------------- None Challenges ------------ None Game ------ Seed BattleTerrabombCore Manual? 0 Play Time 00:38:20 Cumulative 22.9 hours Start 2021.06.25 @ 21:36:30 End 2021.06.25 @ 22:13:24 Sessions 1 Manual Loads 0 Difficulty Rogue Special Mode None Game No. 27 Rogue 27 Adventurer 0 Explorer 0 Win Type - Total 0 Types 0/0/0/0/0/0/0/0/0 Lore% 17 Gallery% 40 Achievement% 24 Wizard Run 0 Options --------- ASCII 1 Keyboard 0 Movement Mouse Keybinds 0 Fullscreen 2 Font 18/X11 Map View 76x50 Tactical HUD 1 Map Filters NONE Filters NONE Steam 1 RUN: a5b3b751-875b-472f-aadf-5f9142fc852d